fUST/lending_fUST_20240714
["ID","MTS","AMOUNT","RATE_DAILY","PERIOD"]
[331956412,1720896641773,-527.83564671,0.00024931,2]
[331956413,1720896641782,-500.0,0.00024931,2]
[331956414,1720896641791,-500.0,0.00024931,2]
[331956415,1720896641801,-500.0,0.00024931,2]
[331956416,1720896641810,-500.0,0.00024931,2]
[331956417,1720896641820,-500.0,0.00024931,2]
[331956418,1720896641830,-500.0,0.00024931,2]
[331956419,1720896641839,-500.0,0.00024931,2]
[331956420,1720896641849,-500.0,0.00024931,2]
[331956421,1720896641858,-500.0,0.00024931,2]
[331956422,1720896641868,-500.0,0.00024931,2]
[331956423,1720896641877,-500.0,0.00024931,2]
[331956424,1720896641888,-505.27746407,0.00024931,2]
[331956425,1720896641897,-500.0,0.00024931,2]
[331956426,1720896641908,-12650.34,0.00024931,2]
[331956427,1720896641918,-500.0,0.00024931,2]
[331956428,1720896641928,-500.0,0.00024931,2]
[331956429,1720896641938,-500.0,0.00024931,2]
[331956430,1720896641948,-500.0,0.00024931,2]
[331956431,1720896641958,-508.57441733,0.00024931,2]
[331956432,1720896641967,-500.0,0.00024931,2]
[331956433,1720896641976,-506.4535966,0.00024931,2]
[331956434,1720896641986,-500.0,0.00024931,2]
[331956435,1720896641996,-961.39,0.00024931,2]
[331956436,1720896642006,-500.0,0.00024931,2]
[331956437,1720896642015,-535.21285038,0.00024931,2]
[331956438,1720896642024,-593.56917514,0.00024931,2]
[331956439,1720896642033,-500.0,0.00024931,2]
[331956440,1720896642042,-500.0,0.00024931,2]
[331956441,1720896642052,-500.0,0.00024931,2]
[331956442,1720896642062,-500.0,0.00024931,2]
[331956443,1720896642071,-500.0,0.00024931,2]
[331956444,1720896642080,-360.70286572,0.00024931,2]
[331956445,1720896642089,-500.0,0.00024931,2]
[331956446,1720896642099,-1945.35,0.00024931,2]
[331956447,1720896642111,-517.04,0.00024931,2]
[331956448,1720896642131,-617.69,0.00024931,2]
[331956449,1720896642143,-500.0,0.00024931,2]
[331956450,1720896642154,-500.0,0.00024931,2]
[331956451,1720896642164,-163.51566969,0.00024931,2]
[331956452,1720896642174,-500.0,0.00024931,2]
[331956453,1720896642183,-232.41212575,0.00024931,2]
[331956454,1720896642193,-500.0,0.00024931,2]
[331956455,1720896642203,-500.0,0.00024931,2]
[331956456,1720896642213,-210.54,0.00024931,2]
[331956457,1720896642223,-2520.67119876,0.00024968,2]
[331956458,1720896642236,-1000.0,0.00025,25]
[331956459,1720896642249,-1735.21361882,0.00025012,2]
[331956460,1720896642260,-150.0,0.00025026,2]
[331956461,1720896642270,-357.29744567,0.00025143,2]
[331956462,1720896642281,-2520.67119876,0.00025174,2]
[331956463,1720896642292,-5004.30616635,0.00025181,2]
[331956464,1720896642303,-29804.4704218,0.00025195,3]
[331956465,1720896642313,-150.112233,0.000252,9]
[331956466,1720896642323,-500.0,0.00025205,2]
[331956467,1720896642334,-500.0,0.00025205,2]
[331956468,1720896642346,-500.0,0.00025205,2]
[331956469,1720896642355,-575.2,0.00025205,2]
[331956470,1720896642365,-500.0,0.00025205,2]
[331956471,1720896642375,-500.0,0.00025205,2]
[331956472,1720896642386,-500.0,0.00025205,2]
[331956473,1720896642398,-629.55,0.00025205,2]
[331956474,1720896642409,-500.0,0.00025205,2]
[331956475,1720896642419,-500.0,0.00025205,2]
[331956476,1720896642430,-180.28,0.00025205,2]
[331956477,1720896642441,-519.79439589,0.00025205,2]
[331956478,1720896642451,-508.98,0.00025205,2]
[331956479,1720896642461,-500.0,0.00025205,2]
[331956480,1720896642471,-500.0,0.00025205,2]
[331956481,1720896642480,-643.75,0.00025205,2]
[331956482,1720896642490,-500.0,0.00025205,2]
[331956483,1720896642506,-500.0,0.00025205,2]
[331956484,1720896642516,-1049.2,0.00025205,2]
[331956486,1720896642526,-500.0,0.00025205,2]
[331956488,1720896642536,-697.74,0.00025205,2]
[331956489,1720896642549,-1986.35,0.00025205,2]
[331956490,1720896642559,-500.0,0.00025205,2]
[331956491,1720896642569,-500.0,0.00025205,2]
[331956492,1720896642581,-500.0,0.00025205,2]
[331956493,1720896642591,-500.0,0.00025205,2]
[331956494,1720896642601,-500.0,0.00025205,2]
[331956495,1720896642612,-500.0,0.00025205,2]
[331956496,1720896642624,-500.0,0.00025205,2]
[331956497,1720896642634,-500.0,0.00025205,2]
[331956498,1720896642644,-500.0,0.00025205,2]
[331956499,1720896642653,-500.0,0.00025205,2]
[331956500,1720896642663,-500.0,0.00025205,2]
[331956501,1720896642673,-500.0,0.00025205,2]
[331956502,1720896642682,-500.0,0.00025205,2]
[331956503,1720896642692,-500.0,0.00025205,2]
[331956504,1720896642702,-161.3704729,0.00025205,2]
[331956505,1720896642711,-500.0,0.00025205,2]
[331956506,1720896642722,-500.0,0.00025205,2]
[331956507,1720896642732,-500.0,0.00025205,2]
[331956508,1720896642742,-500.0,0.00025205,2]
[331956509,1720896642754,-500.0,0.00025205,2]
[331956510,1720896642764,-500.0,0.00025205,2]
[331956511,1720896642774,-500.0,0.00025205,2]
[331956512,1720896642784,-500.0,0.00025205,2]
[331956513,1720896642795,-12650.34,0.00025205,2]
[331956514,1720896642808,-500.0,0.00025205,2]
[331956515,1720896642818,-565.54667167,0.00025205,2]
[331956516,1720896642830,-500.0,0.00025205,2]
[331956517,1720896642840,-500.0,0.00025205,2]
[331956518,1720896642851,-961.39,0.00025205,2]
[331956519,1720896642861,-500.0,0.00025205,2]
[331956520,1720896642871,-500.0,0.00025205,2]
[331956521,1720896642881,-500.0,0.00025205,2]
[331956523,1720896642891,-500.0,0.00025205,2]
[331956525,1720896642901,-1945.35,0.00025205,2]
[331956527,1720896642912,-617.69,0.00025205,2]
[331956529,1720896642923,-500.0,0.00025205,2]
[331956530,1720896642934,-500.0,0.00025205,2]
[331956531,1720896642945,-500.0,0.00025205,2]
[331956532,1720896642956,-357.29744567,0.00025264,2]
[331956533,1720896642968,-150.0,0.00025317,2]
[331956534,1720896642979,-2520.67119876,0.00025379,2]
[331956535,1720896642989,-5004.30616635,0.00025447,2]
[331956536,1720896642999,-29804.4704218,0.00025469,3]
[331956537,1720896643011,-9289.93191817,0.00025479,5]
[331956538,1720896643022,-500.0,0.00025479,2]
[331956539,1720896643033,-545.7,0.00025479,2]
[331956540,1720896643043,-500.0,0.00025479,2]
[331956541,1720896643053,-500.0,0.00025479,2]
[331956542,1720896643063,-500.0,0.00025479,2]
[331956543,1720896643072,-500.0,0.00025479,2]
[331956544,1720896643082,-500.0,0.00025479,2]
[331956545,1720896643092,-1049.2,0.00025479,2]
[331956546,1720896643101,-1986.35,0.00025479,2]
[331956547,1720896643111,-524.41,0.00025479,2]
[331956548,1720896643120,-500.0,0.00025479,2]
[331956549,1720896643130,-503.38008836,0.00025479,2]
[331956550,1720896643140,-500.0,0.00025479,2]
[331956551,1720896643150,-500.0,0.00025479,2]
[331956552,1720896643268,-500.0,0.00025479,2]
[331956553,1720896643278,-500.0,0.00025479,2]
[331956554,1720896643288,-500.0,0.00025479,2]
[331956555,1720896643297,-500.0,0.00025479,2]
[331956556,1720896643307,-523.54,0.00025479,2]
[331956557,1720896643317,-500.0,0.00025479,2]
[331956558,1720896643326,-500.0,0.00025479,2]
[331956559,1720896643336,-500.0,0.00025479,2]
[331956560,1720896643346,-500.0,0.00025479,2]
[331956561,1720896643355,-500.0,0.00025479,2]
[331956562,1720896643365,-12650.34,0.00025479,2]
[331956563,1720896643375,-500.0,0.00025479,2]
[331956564,1720896643385,-961.39,0.00025479,2]
[331956565,1720896643395,-481.53405331,0.00025479,2]
[331956566,1720896643404,-500.0,0.00025479,2]
[331956567,1720896643414,-500.0,0.00025479,2]
[331956568,1720896643424,-1945.35,0.00025479,2]
[331956569,1720896643433,-617.69,0.00025479,2]
[331956570,1720896643443,-330.92,0.00025479,2]
[331956571,1720896643452,-500.0,0.00025479,2]
[331956572,1720896643462,-357.29744567,0.00025497,2]
[331956573,1720896643472,-886.30497612,0.00025501,2]
[331956574,1720896643482,-166.9,0.00025612,2]
[331956575,1720896643493,-5004.30616635,0.00025625,2]
[331956576,1720896643506,-150.0,0.00025729,2]
[331956577,1720896643516,-29804.4704218,0.00025743,3]
[331956578,1720896643525,-500.0,0.00025753,2]
[331956579,1720896643535,-500.0,0.00025753,2]
[331956580,1720896643546,-500.0,0.00025753,2]
[331956581,1720896643556,-438.22,0.00025753,2]
[331956582,1720896643566,-176.98,0.00025753,2]
[331956583,1720896643577,-515.81,0.00025753,2]
[331956584,1720896643587,-1049.2,0.00025753,2]
[331956585,1720896643597,-1986.35,0.00025753,2]
[331956588,1720896643607,-599.0,0.00025753,2]
[331956590,1720896643618,-500.0,0.00025753,2]
[331956592,1720896643627,-500.0,0.00025753,2]
[331956593,1720896643637,-500.0,0.00025753,2]
[331956594,1720896643646,-500.0,0.00025753,2]
[331956595,1720896643656,-500.0,0.00025753,2]
[331956596,1720896643666,-500.0,0.00025753,2]
[331956597,1720896643675,-500.0,0.00025753,2]
[331956598,1720896643686,-500.0,0.00025753,2]
[331956599,1720896643696,-500.0,0.00025753,2]
[331956600,1720896643705,-500.0,0.00025753,2]
[331956601,1720896643715,-12650.34,0.00025753,2]
[331956602,1720896643726,-500.0,0.00025753,2]
[331956603,1720896643735,-961.39,0.00025753,2]
[331956604,1720896643745,-531.22819008,0.00025753,2]
[331956605,1720896643755,-500.0,0.00025753,2]
[331956606,1720896643764,-1945.35,0.00025753,2]
[331956607,1720896643774,-617.69,0.00025753,2]
[331956608,1720896643784,-500.0,0.00025753,2]
[331956609,1720896643794,-357.29744567,0.00025755,2]
[331956610,1720896643804,-5004.30616635,0.00025775,2]
[331956611,1720896643813,-656.77900135,0.00025869,2]
[331956612,1720896643823,-905.07891066,0.00025869,2]
[331956613,1720896643832,-21263.30307476,0.00025869,2]
[331956614,1720896643842,-828.65736599,0.00025869,2]
[331956615,1720896643852,-1320.90438019,0.00025869,2]
[331956616,1720896643861,-154.54409492,0.00025902,2]
[331956617,1720896643873,-150.60173835,0.00025929,2]
[331956618,1720896643883,-159.84893722,0.00025984,2]
[331956619,1720896643892,-16994.81160489,0.00026017,3]
[331956667,1720896644394,-281.36419801,0.00024657,2]
[331956669,1720896644405,-12809.65881691,0.00026017,3]
[331956671,1720896644415,-236.64,0.00026027,2]
[331956673,1720896644425,-500.0,0.00026027,2]
[331956675,1720896644435,-500.0,0.00026027,2]
[331956677,1720896644446,-1049.2,0.00026027,2]
[331956679,1720896644456,-1986.35,0.00026027,2]
[331956682,1720896644467,-500.0,0.00026027,2]
[331956684,1720896644478,-500.0,0.00026027,2]
[331956686,1720896644489,-500.0,0.00026027,2]
[331956688,1720896644502,-500.0,0.00026027,2]
[331956690,1720896644513,-500.0,0.00026027,2]
[331956692,1720896644523,-500.0,0.00026027,2]
[331956694,1720896644533,-12650.34,0.00026027,2]
[331956696,1720896644545,-500.0,0.00026027,2]
[331956698,1720896644555,-961.39,0.00026027,2]
[331956700,1720896644565,-500.0,0.00026027,2]
[331956702,1720896644575,-1945.35,0.00026027,2]
[331956704,1720896644587,-617.69,0.00026027,2]
[331956706,1720896644596,-500.0,0.00026027,2]
[331956708,1720896644607,-155.38803879,0.00026176,2]
[331956710,1720896644617,-357.29744568,0.00026215,2]
[331956712,1720896644628,-150.42960253,0.00026252,2]
[331956714,1720896644640,-5004.30616643,0.00026292,2]
[331956716,1720896644651,-500.0,0.00026301,2]
[331956718,1720896644661,-500.0,0.00026301,2]
[331956720,1720896644671,-1049.2,0.00026301,2]
[331956723,1720896644683,-1986.35,0.00026301,2]
[331956725,1720896644693,-500.0,0.00026301,2]
[331956727,1720896644703,-500.0,0.00026301,2]
[331956729,1720896644713,-500.0,0.00026301,2]
[331956731,1720896644724,-500.0,0.00026301,2]
[331956733,1720896644733,-500.0,0.00026301,2]
[331956735,1720896644743,-500.0,0.00026301,2]
[331956737,1720896644753,-12650.34,0.00026301,2]
[331956739,1720896644764,-961.39,0.00026301,2]
[331956741,1720896644773,-500.0,0.00026301,2]
[331956743,1720896644783,-1945.35,0.00026301,2]
[331956745,1720896644793,-617.69,0.00026301,2]
[331956747,1720896644802,-628.63,0.00026301,2]
[331956749,1720896644812,-152.76264877,0.00026357,2]
[331956751,1720896644822,-3000.0,0.000265,2]
[331956753,1720896644832,-3000.0,0.0002651,2]
[331956755,1720896644843,-3000.0,0.0002652,2]
[331956757,1720896644853,-3000.0,0.0002653,2]
[331956759,1720896644863,-3000.0,0.0002654,2]
[331956761,1720896644873,-29804.4704218,0.0002654,3]
[331956763,1720896644884,-3000.0,0.0002655,2]
[331956766,1720896644894,-764.43027422,0.0002656,2]
[331956768,1720896644904,-189.39290951,0.0002656,2]
[331956770,1720896644914,-428.44271624,0.0002656,2]
[331956771,1720896644924,-170.35553231,0.0002656,2]
[331956774,1720896644934,-5846.59511626,0.0002656,2]
[331956776,1720896644944,-4302.591442,0.0002656,2]
[331956778,1720896644953,-493.2280173,0.00026574,2]
[331956780,1720896644964,-297.44902666,0.00026574,2]
[331956782,1720896644975,-174.03089246,0.00026574,2]
[331956784,1720896644985,-158.69421259,0.00026574,2]
[331956786,1720896644995,-1065.99282123,0.00026574,2]
[331956788,1720896645004,-229.31956132,0.00026574,2]
[331956790,1720896645015,-257.04469015,0.00026574,2]
[331956792,1720896645024,-154.57491897,0.00026574,2]
[331956794,1720896645035,-500.0,0.00026575,2]
[331956796,1720896645045,-500.0,0.00026575,2]
[331956798,1720896645055,-1049.2,0.00026575,2]
[331956800,1720896645065,-1986.35,0.00026575,2]
[331956802,1720896645075,-416.18,0.00026575,2]
[331956804,1720896645085,-251.87,0.00026575,2]
[331956806,1720896645095,-500.0,0.00026575,2]
[331956808,1720896645105,-526.07,0.00026575,2]
[331956810,1720896645114,-500.0,0.00026575,2]
[331956812,1720896645124,-12650.34,0.00026575,2]
[331956814,1720896645134,-961.39,0.00026575,2]
[331956816,1720896645143,-500.0,0.00026575,2]
[331956818,1720896645153,-1945.35,0.00026575,2]
[331956820,1720896645163,-617.69,0.00026575,2]
[331956822,1720896645175,-166.9,0.00026701,2]
[331956824,1720896645185,-1500.0,0.00026848,2]
[331956826,1720896645195,-391.91633005,0.00026848,2]
[331956828,1720896645204,-412.83206574,0.00026848,2]
[331956830,1720896645214,-260.5671497,0.00026848,2]
[331956832,1720896645225,-155.65182733,0.00026848,2]
[331956834,1720896645235,-500.0,0.00026849,2]
[331956836,1720896645245,-500.0,0.00026849,2]
[331956838,1720896645256,-1049.2,0.00026849,2]
[331956840,1720896645265,-1986.35,0.00026849,2]
[331956842,1720896645275,-500.0,0.00026849,2]
[331956844,1720896645287,-500.0,0.00026849,2]
[331956846,1720896645297,-12650.34,0.00026849,2]
[331956848,1720896645306,-961.39,0.00026849,2]
[331956850,1720896645316,-234.76,0.00026849,2]
[331956864,1720896645432,-1945.35,0.00026849,2]
[331956866,1720896645443,-617.69,0.00026849,2]
[331956868,1720896645452,-152.76264877,0.00026888,2]
[331956870,1720896645462,-966.54780921,0.00027,15]
[331956872,1720896645473,-1000.0,0.00027,27]
[331956874,1720896645483,-152.76264877,0.0002701,2]
[331956876,1720896645494,-152.76264877,0.00027092,2]
[331956878,1720896645507,-500.0,0.00027123,2]
[331956880,1720896645518,-500.0,0.00027123,2]
[331956882,1720896645528,-1049.2,0.00027123,2]
[331956884,1720896645539,-1986.35,0.00027123,2]
[331956886,1720896645549,-500.0,0.00027123,2]
[331956888,1720896645558,-500.0,0.00027123,2]
[331956889,1720896645569,-12650.34,0.00027123,2]
[331956890,1720896645578,-961.39,0.00027123,2]
[331956891,1720896645588,-1945.35,0.00027123,2]
[331956892,1720896645598,-617.69,0.00027123,2]
[331956893,1720896645607,-163.8038411,0.00027123,2]
[331956894,1720896645618,-283.56828739,0.00027184,2]
[331956895,1720896645629,-182.82989065,0.00027184,2]
[331956896,1720896645639,-458.65976805,0.00027184,2]
[331956897,1720896645649,-1450.26906671,0.00027184,2]
[331956898,1720896645658,-155.34319849,0.00027184,2]
[331956899,1720896645667,-345.81993579,0.00027194,2]
[331956900,1720896645677,-156.30692249,0.00027194,2]
[331956901,1720896645686,-197.44371632,0.00027194,2]
[331956902,1720896645696,-546.3878,0.00027195,2]
[331956903,1720896645706,-500.0,0.00027397,2]
[331956904,1720896645715,-500.0,0.00027397,2]
[331956906,1720896645726,-1049.2,0.00027397,2]
[331956908,1720896645736,-1986.35,0.00027397,2]
[331956910,1720896645745,-500.0,0.00027397,2]
[331956912,1720896645755,-500.0,0.00027397,2]
[331956914,1720896645765,-12650.34,0.00027397,2]
[331956916,1720896645775,-961.39,0.00027397,2]
[331956918,1720896645785,-1945.35,0.00027397,2]
[331956920,1720896645794,-617.69,0.00027397,2]
[331956922,1720896645804,-500.0,0.00027397,2]
[331956924,1720896645814,-241.74936296,0.00027397,2]
[331956926,1720896645823,-171.442054,0.00027397,120]
[331956928,1720896645833,-154.54409492,0.00027399,2]
[331956930,1720896645842,-500.2718385,0.00027399,2]
[331956932,1720896645852,-566.82686133,0.00027399,2]
[331956934,1720896645861,-43690.95914845,0.000275,2]
[331956936,1720896645871,-600.14,0.00027671,2]
[331956938,1720896645881,-500.0,0.00027671,2]
[331956940,1720896645890,-1049.2,0.00027671,2]
[331956942,1720896645900,-1986.35,0.00027671,2]
[331956944,1720896645910,-500.0,0.00027671,2]
[331956946,1720896645919,-500.0,0.00027671,2]
[331956948,1720896645930,-12650.34,0.00027671,2]
[331956951,1720896645940,-961.39,0.00027671,2]
[331956953,1720896645949,-1945.35,0.00027671,2]
[331956954,1720896645959,-617.69,0.00027671,2]
[331956956,1720896645969,-152.94115716,0.00027764,2]
[331956957,1720896645979,-166.9,0.0002779,2]
[331956959,1720896645988,-166.74805161,0.00027892,2]
[331956961,1720896646000,-166.74805161,0.00027927,2]
[331956963,1720896646010,-500.0,0.00027945,2]
[331956965,1720896646020,-1049.2,0.00027945,2]
[331956967,1720896646029,-1986.35,0.00027945,2]
[331956968,1720896646038,-500.0,0.00027945,2]
[331956969,1720896646048,-500.0,0.00027945,2]
[331956970,1720896646059,-12650.34,0.00027945,2]
[331956972,1720896646068,-961.39,0.00027945,2]
[331956974,1720896646078,-1945.35,0.00027945,2]
[331956976,1720896646088,-617.69,0.00027945,2]
[331956977,1720896646098,-152.94115716,0.00027949,2]
[331956978,1720896646108,-152.76264877,0.00027989,2]
[331956979,1720896646117,-29256.29852053,0.0002799,2]
[331956980,1720896646127,-12217.24497428,0.00028,30]
[331956981,1720896646137,-90862.6159979,0.00028,2]
[331956982,1720896646146,-500.0,0.00028219,2]
[331956983,1720896646157,-1049.2,0.00028219,2]
[331956984,1720896646167,-1986.35,0.00028219,2]
[331956985,1720896646176,-500.0,0.00028219,2]
[331956986,1720896646186,-500.0,0.00028219,2]
[331956987,1720896646196,-12650.34,0.00028219,2]
[331956988,1720896646205,-961.39,0.00028219,2]
[331956989,1720896646214,-1945.35,0.00028219,2]
[331956990,1720896646225,-617.69,0.00028219,2]
[331956991,1720896646235,-152.76264877,0.00028223,2]
[331956992,1720896646244,-159.57839054,0.00028279,2]
[331956993,1720896646255,-159.84893722,0.00028421,2]
[331956994,1720896646265,-197.7597611,0.00028431,2]
[331956995,1720896646274,-500.0,0.00028493,2]
[331956996,1720896646284,-1049.2,0.00028493,2]
[331956997,1720896646293,-1986.35,0.00028493,2]
[331956998,1720896646303,-500.0,0.00028493,2]
[331956999,1720896646312,-500.0,0.00028493,2]
[331957000,1720896646321,-12650.34,0.00028493,2]
[331957001,1720896646330,-961.39,0.00028493,2]
[331957002,1720896646340,-1945.35,0.00028493,2]
[331957003,1720896646349,-617.69,0.00028493,2]
[331957004,1720896646358,-500.0,0.00028767,2]
[331957005,1720896646367,-1049.2,0.00028767,2]
[331957006,1720896646376,-1986.35,0.00028767,2]
[331957007,1720896646385,-500.0,0.00028767,2]
[331957008,1720896646395,-500.0,0.00028767,2]
[331957010,1720896646405,-12650.34,0.00028767,2]
[331957011,1720896646415,-961.39,0.00028767,2]
[331957013,1720896646426,-151.0,0.00028767,7]
[331957015,1720896646436,-151.0,0.00028767,7]
[331957018,1720896646450,-1945.35,0.00028767,2]
[331957019,1720896646458,-151.0,0.00028767,7]
[331957021,1720896646468,-151.0,0.00028767,7]
[331957022,1720896646477,-617.69,0.00028767,2]
[331957024,1720896646486,-225.621405,0.00028767,7]
[331957025,1720896646497,-151.0,0.00028767,7]
[331957026,1720896646507,-225.621405,0.00028767,7]
[331957027,1720896646516,-194.314073,0.00028767,7]
[331957028,1720896646525,-151.0,0.00028767,7]
[331957029,1720896646534,-194.314073,0.00028767,7]
[331957030,1720896646543,-151.0,0.00028767,7]
[331957031,1720896646553,-32837.99447221,0.0002877,2]
[331957032,1720896646870,441.04727659,0.00014545,2]
[331957033,1720896647340,-500.0,0.00024657,2]
[331957034,1720896647350,-1435.34449865,0.0002877,2]
[331957035,1720896647519,-2297.1721867,0.0002877,2]
[331957036,1720896650277,154.54409492,0.0002,2]
[331957037,1720896686686,10769.17740552,0.00022941,2]
[331957038,1720896686708,4067.66515161,0.00022941,2]
[331957039,1720896686731,6426.46051763,0.00022941,2]
[331957043,1720896746121,273.37336231,9.9e-05,2]
[331957044,1720896753964,273.37336231,9.9e-05,2]
[331957045,1720896762059,273.37336231,9.9e-05,2]
[331957046,1720896770552,273.37336231,9.9e-05,2]
[331957047,1720896774335,1058.81410225,0.00012,2]
[331957048,1720896776735,154.85288975,0.00012,2]
[331957049,1720896778688,273.37336231,9.9e-05,2]
[331957051,1720896787191,273.37336231,9.9e-05,2]
[331957052,1720896793977,1636.98995052,0.00012,2]
[331957053,1720896796391,273.37336231,9.9e-05,2]
[331957054,1720896804286,273.37336231,9.9e-05,2]
[331957055,1720896813603,273.37336231,9.9e-05,2]
[331957056,1720896854003,462.39789743,0.00012,2]
[331957061,1720897087309,566.82686133,0.00014545,2]
[331957062,1720897092954,500.2718385,0.00014545,2]
[331957067,1720897216628,155.34319849,0.00014999,2]
[331957074,1720897228858,458.65976805,0.00014999,2]
[331957078,1720897234707,391.91633005,0.00014999,2]
[331957081,1720897238160,345.81993579,0.00014999,2]
[331957083,1720897247943,412.83206574,0.00014999,2]
[331957086,1720897255463,182.82989065,0.00014999,2]
[331957089,1720897261443,155.65182733,0.00014999,2]
[331957092,1720897272588,1450.26906671,0.00014999,2]
[331957101,1720897330550,5791.33874505,0.00014998,2]
[331957106,1720897343355,257.04469015,0.00014999,2]
[331957110,1720897356987,154.63660398,0.00014999,2]
[331957111,1720897357286,418.2017512,0.00014999,2]
[331957117,1720897385236,493.2280173,0.00014999,2]
[331957120,1720897398317,297.44902666,0.00014999,2]
[331957122,1720897399298,3795.9058464,0.00014999,2]
[331957143,1720897555384,12004.32114794,0.00014999,2]
[331957145,1720897557783,154.83742071,0.00014999,2]
[331957146,1720897558467,1854.50113432,0.00014999,2]
[331957148,1720897564328,3773.09344064,0.00014999,2]
[331957152,1720897572593,-300.0,0.00016254,2]
[331957153,1720897572617,-21263.30307476,0.00016255,2]
[331957154,1720897572639,-269.54125721,0.00016255,2]
[331957155,1720897572661,-154.63660398,0.00016255,2]
[331957156,1720897572683,-154.63660398,0.00016255,2]
[331957157,1720897572707,-154.63660398,0.00016255,2]
[331957158,1720897572730,-402.73174598,0.00016255,2]
[331957159,1720897572754,-11495.5964458,0.00016255,2]
[331957162,1720897574637,208.24444809,0.00016255,2]
[331957165,1720897576922,154.85104039,0.00016255,2]
[331957166,1720897577554,3134.02290683,0.00016255,4]
[331957168,1720897581610,240.20078219,0.00016255,2]
[331957170,1720897585706,15414.79924926,0.00014999,2]
[331957172,1720897589857,413.03103633,0.00016255,2]
[331957185,1720897638343,1435.47697858,0.00016255,2]
[331957186,1720897639139,-156.30692249,0.00018899,2]
[331957187,1720897639165,-300.0,0.00019702,2]
[331957188,1720897639191,-300.0,0.00019702,2]
[331957189,1720897639216,-891.57209621,0.00019703,2]
[331957190,1720897641138,-940.29362969,0.00019703,2]
[331957192,1720897645104,-383.44948237,0.00019703,2]
[331957194,1720897710796,21263.30307476,0.00016255,2]
[331957196,1720897737562,3134.02290683,0.00016255,4]
[331957197,1720897751202,-187.87198309,0.00018899,2]
[331957198,1720897751226,-250.0,0.00019046,2]
[331957199,1720897751248,-375.07183976,0.00019165,2]
[331957200,1720897751271,-156.30692249,0.00019165,2]
[331957201,1720897751293,-253.11569828,0.00019165,2]
[331957202,1720897751315,-246.876721,0.00019848,2]
[331957203,1720897751337,-154.59033561,0.0002,2]
[331957204,1720897751360,-1065.99282123,0.0002,2]
[331957205,1720897751380,-158.69421259,0.0002,2]
[331957206,1720897751401,-174.03089246,0.0002,2]
[331957207,1720897751422,-5846.59511626,0.0002,2]
[331957208,1720897751445,-154.55950541,0.0002,2]
[331957209,1720897751468,-500.0,0.00020045,2]
[331957210,1720897751490,-500.0,0.00020045,2]
[331957211,1720897751510,-500.0,0.00020045,2]
[331957212,1720897751531,-500.0,0.00020045,2]
[331957213,1720897751555,-500.0,0.00020045,2]
[331957214,1720897751579,-500.0,0.00020045,2]
[331957215,1720897751600,-500.0,0.00020045,2]
[331957216,1720897751621,-420.46775328,0.00020045,2]
[331957217,1720897751642,-500.0,0.00020045,2]
[331957218,1720897751663,-500.0,0.00020045,2]
[331957219,1720897751684,-500.0,0.00020045,2]
[331957220,1720897751704,-220.9425978,0.00020045,2]
[331957221,1720897751724,-500.0,0.00020045,2]
[331957222,1720897751744,-537.43656506,0.00020045,2]
[331957223,1720897751766,-470.70716265,0.00020045,2]
[331957224,1720897751787,-500.0,0.00020045,2]
[331957225,1720897751807,-500.0,0.00020045,2]
[331957226,1720897751828,-500.0,0.00020045,2]
[331957227,1720897751852,-500.0,0.00020045,2]